bitfinex-derivatives/quotes_BTCF0:USTF0_20230702
["timestamp","ask_amount","ask_price","bid_price","bid_amount"]
[1688303346310,0.3608,30558.0,30555.0,0.019638]
[1688303346513,0.3608,30558.0,30556.0,0.03707914]
[1688303346715,0.3608,30558.0,30557.0,0.019637]
[1688303347109,0.3608,30558.0,30557.0,0.05671614]
[1688303353721,0.44544625,30558.0,30557.0,0.05671614]
[1688303361027,0.44544625,30558.0,30557.0,0.019637]
[1688303361223,0.45467594,30558.0,30557.0,0.019637]
[1688303361527,0.46508325,30558.0,30557.0,0.019637]
[1688303361728,0.52870845,30558.0,30557.0,0.019637]
[1688303362427,0.47431294,30558.0,30557.0,0.019637]
[1688303362629,0.46508325,30558.0,30557.0,0.019637]
[1688303363027,0.44544625,30558.0,30557.0,0.019637]
[1688303363333,0.08464625,30558.0,30557.0,0.320737]
[1688303363632,0.08464625,30558.0,30557.0,0.019637]
[1688303364819,0.08464625,30558.0,30557.0,0.03848645]
[1688303365732,0.09387594,30558.0,30557.0,0.36468645]
[1688303365934,0.08464625,30558.0,30557.0,0.36468645]
[1688303366843,0.08464625,30558.0,30557.0,0.38291614]
[1688303368530,0.08464625,30558.0,30557.0,0.03848645]
[1688303368729,0.08464625,30558.0,30557.0,0.019637]
[1688303373033,0.09387594,30558.0,30557.0,0.019637]
[1688303373429,0.08464625,30558.0,30557.0,0.019637]
[1688303374025,0.09387594,30558.0,30557.0,0.019637]
[1688303375437,0.08464625,30558.0,30557.0,0.019637]
[1688303379142,0.09387594,30558.0,30557.0,0.019637]
[1688303380238,0.08464625,30558.0,30557.0,0.019637]
[1688303381939,0.09387594,30558.0,30557.0,0.019637]
[1688303383440,0.08464625,30558.0,30557.0,0.019637]
[1688303384040,0.09387594,30558.0,30557.0,0.019637]
[1688303385436,0.08464625,30558.0,30557.0,0.019637]
[1688303386137,0.08464625,30558.0,30557.0,0.05671614]
[1688303387443,0.09387594,30558.0,30557.0,0.019637]
[1688303389036,0.08464625,30558.0,30557.0,0.019637]
[1688303394941,0.08464625,30558.0,30557.0,0.05671614]
[1688303395247,0.08464625,30558.0,30557.0,0.03848645]
[1688303396142,0.08464625,30558.0,30557.0,0.05671614]
[1688303396950,0.08464625,30558.0,30557.0,0.03848645]
[1688303397251,0.08464625,30558.0,30557.0,0.019637]
[1688303399758,0.08464625,30558.0,30557.0,0.03848645]
[1688303400057,0.08464625,30558.0,30557.0,0.05671614]
[1688303401341,0.08464625,30558.0,30557.0,0.03848645]
[1688303402553,0.08464625,30558.0,30557.0,0.019637]
[1688303404347,0.08464625,30558.0,30557.0,0.03848645]
[1688303405058,0.08464625,30558.0,30557.0,0.019637]
[1688303405561,0.09387594,30558.0,30557.0,0.019637]
[1688303406060,0.10576355,30558.0,30557.0,0.019637]
[1688303406259,0.09653386,30558.0,30557.0,0.019637]
[1688303407454,0.10576355,30558.0,30557.0,0.019637]
[1688303407856,0.09653386,30558.0,30557.0,0.019637]
[1688303411767,0.10576355,30558.0,30557.0,0.019637]
[1688303412357,0.09653386,30558.0,30557.0,0.019637]
[1688303418258,0.10576355,30558.0,30557.0,0.019637]
[1688303418968,0.09653386,30558.0,30557.0,0.019637]
[1688303420957,0.11616986,30558.0,30557.0,0.019637]
[1688303421868,0.12539955,30558.0,30557.0,0.019637]
[1688303422772,0.11616986,30558.0,30557.0,0.019637]
[1688303424066,0.09653386,30558.0,30557.0,0.019637]
[1688303424570,0.09653386,30558.0,30557.0,0.03786669]
[1688303425270,0.09653386,30558.0,30557.0,0.05671614]
[1688303425667,0.09653386,30558.0,30557.0,0.03848645]
[1688303426060,0.09653386,30558.0,30557.0,0.019637]
[1688303426461,0.09653386,30558.0,30557.0,0.03848645]
[1688303426665,0.09653386,30558.0,30557.0,0.03786669]
[1688303427070,0.09653386,30558.0,30557.0,0.019637]
[1688303428172,0.45733386,30558.0,30557.0,0.019637]
[1688303431070,0.09653386,30558.0,30557.0,0.019637]
[1688303432076,0.09653386,30558.0,30557.0,0.03786669]
[1688303440672,0.08464625,30558.0,30557.0,0.03786669]
[1688303441983,0.08464625,30558.0,30557.0,0.019637]
[1688303442576,0.08464625,30558.0,30557.0,0.03786669]
[1688303443378,0.08464625,30558.0,30557.0,0.019637]
[1688303444381,0.09387594,30558.0,30557.0,0.019637]
[1688303444688,0.08464625,30558.0,30557.0,0.019637]
[1688303446983,0.08464625,30558.0,30557.0,0.03786669]
[1688303449081,0.08464625,30558.0,30557.0,0.05671614]
[1688303453792,0.08464625,30558.0,30557.0,0.03786669]
[1688303453993,0.08464625,30558.0,30557.0,0.019637]
[1688303454196,0.08464625,30558.0,30557.0,0.03786669]
[1688303455486,0.08464625,30558.0,30557.0,0.019637]
[1688303459397,0.08464625,30558.0,30557.0,0.05671614]
[1688303459789,0.08464625,30558.0,30557.0,0.03786669]
[1688303461691,0.08464625,30558.0,30557.0,0.019637]
[1688303464287,0.44544625,30558.0,30557.0,0.019637]
[1688303465694,0.46508225,30558.0,30557.0,0.019637]
[1688303466696,0.47431194,30558.0,30557.0,0.019637]
[1688303467711,0.46508225,30558.0,30557.0,0.019637]
[1688303468402,0.47431194,30558.0,30557.0,0.019637]
[1688303469708,0.53033344,30558.0,30557.0,0.019637]
[1688303470007,0.53956313,30558.0,30557.0,0.019637]
[1688303470797,0.53033344,30558.0,30557.0,0.019637]
[1688303472306,0.53956313,30558.0,30557.0,0.019637]
[1688303473626,0.47431194,30558.0,30557.0,0.019637]
[1688303474114,0.46508225,30558.0,30557.0,0.019637]
[1688303479730,0.47431194,30558.0,30557.0,0.019637]
[1688303483635,0.46508225,30558.0,30557.0,0.019637]
[1688303484334,0.47431194,30558.0,30557.0,0.019637]
[1688303484933,0.46508225,30558.0,30557.0,0.019637]
[1688303485131,0.47431194,30558.0,30557.0,0.019637]
[1688303487639,0.47431194,30558.0,30555.0,0.058912]
[1688303487938,0.02886669,30557.0,30556.0,0.019638]
[1688303488339,0.36156669,30557.0,30556.0,0.019638]
[1688303494250,0.72236669,30557.0,30556.0,0.019638]
[1688303495740,0.72236669,30557.0,30554.0,0.04958787]
[1688303495937,0.72236669,30557.0,30550.0,0.77749418]
[1688303495938,0.069639,30555.0,30551.0,0.058923]
[1688303496251,0.38044,30552.0,30551.0,0.058923]
[1688303496458,0.38966969,30552.0,30551.0,0.058923]
[1688303496949,0.38966969,30552.0,30551.0,0.088923]
[1688303497136,0.38966969,30552.0,30551.0,0.09265393]
[1688303497340,0.38966969,30552.0,30551.0,0.12265393]
[1688303497551,0.38966969,30552.0,30551.0,0.118923]
[1688303498051,0.38966969,30552.0,30551.0,0.12287891]
[1688303503953,0.4070332,30552.0,30551.0,0.12287891]
[1688303504155,0.3873932,30552.0,30551.0,0.12287891]
[1688303504340,0.3608,30552.0,30551.0,0.44257891]
[1688303504544,0.3608,30552.0,30551.0,0.4608086]
[1688303504753,0.3608,30552.0,30551.0,0.47965805]
[1688303505755,0.3608,30552.0,30551.0,0.44257891]
[1688303508856,0.3608,30552.0,30551.0,0.4608086]
[1688303509056,0.3608,30552.0,30551.0,0.44257891]
[1688303509251,0.3608,30552.0,30551.0,0.44234257]
[1688303510860,0.3608,30552.0,30551.0,0.46057226]
[1688303511353,0.3608,30552.0,30551.0,0.44234257]
[1688303511562,0.37002969,30552.0,30551.0,0.44234257]
[1688303511763,0.3608,30552.0,30551.0,0.44234257]
[1688303512347,0.3608,30552.0,30551.0,0.46057226]
[1688303512563,0.32745892,30554.0,30551.0,0.47942171]
[1688303512863,0.02685892,30554.0,30552.0,0.01822969]
[1688303513064,0.02685892,30554.0,30553.0,0.03848945]
[1688303513253,0.05049096,30555.0,30553.0,0.04244165]
[1688303513453,0.05049096,30555.0,30554.0,0.01822969]
[1688303513650,0.05049096,30555.0,30554.0,0.05671814]
[1688303513856,0.05049096,30555.0,30554.0,0.35881814]
[1688303514767,0.07713962,30555.0,30554.0,0.35881814]
[1688303517063,0.07713962,30555.0,30554.0,0.28781813]
[1688303517363,0.07713962,30555.0,30554.0,0.30745713]
[1688303519460,0.09677762,30555.0,30554.0,0.30745713]
[1688303519671,0.09677762,30555.0,30554.0,0.32630658]
[1688303520968,0.09677762,30555.0,30554.0,0.30745713]
[1688303521762,0.09677762,30555.0,30554.0,0.32630658]
[1688303522657,0.09677762,30555.0,30554.0,0.33025694]
[1688303527465,0.09677762,30555.0,30554.0,0.31140749]
[1688303529262,0.11562707,30555.0,30554.0,0.3024075]
[1688303530063,0.09598907,30555.0,30554.0,0.3024075]
[1688303530469,0.07713962,30555.0,30554.0,0.31140749]
[1688303530672,0.1117899,30555.0,30554.0,0.0514388]
[1688303530867,0.1117899,30555.0,30554.0,0.7308388]
[1688303531065,0.1117899,30555.0,30554.0,0.72688844]
[1688303535677,0.08514124,30555.0,30554.0,0.72688844]
[1688303538274,0.00049096,30555.0,30554.0,0.72688844]
[1688303541082,0.00049096,30555.0,30554.0,0.36608844]
[1688303541380,0.00049096,30555.0,30554.0,0.72688844]
[1688303542677,0.00049096,30555.0,30554.0,0.75288215]
[1688303545977,0.08513527,30555.0,30554.0,0.75288215]
[1688303551086,0.08513527,30555.0,30554.0,0.39208215]
[1688303551288,0.08513527,30555.0,30554.0,0.75288215]
[1688303553488,0.00049096,30555.0,30554.0,0.75288215]
[1688303556779,9e-08,30555.0,30554.0,0.75288215]
[1688303556983,0.3109,30559.0,30554.0,0.75288215]
[1688303557292,0.08464297,30558.0,30555.0,0.02784944]
[1688303557589,0.08464297,30557.0,30556.0,0.019637]
[1688303557890,0.08464297,30557.0,30556.0,0.07113581]
[1688303559082,0.08464297,30557.0,30556.0,0.04748644]
[1688303564789,0.08464297,30557.0,30556.0,0.40828644]
[1688303564988,0.08464297,30557.0,30556.0,0.04748644]
[1688303565197,0.08464297,30557.0,30556.0,0.40828644]
[1688303569885,0.08464297,30557.0,30556.0,0.04748644]
[1688303570091,0.08464297,30557.0,30556.0,0.40828644]
[1688303575089,0.08464297,30557.0,30556.0,0.04748644]
[1688303575297,0.08464297,30557.0,30556.0,0.40828644]
[1688303576203,0.08464297,30557.0,30556.0,0.04748644]
[1688303576393,0.08464297,30557.0,30556.0,0.40828644]
[1688303578805,0.08464297,30557.0,30556.0,0.04748644]
[1688303579002,0.15788793,30557.0,30556.0,0.02863699]
[1688303579601,0.47378793,30557.0,30556.0,0.02863699]
[1688303580211,0.05,30555.0,30552.0,0.01964]
[1688303580504,0.380439,30553.0,30552.0,0.01964]
[1688303580691,0.48331166,30553.0,30552.0,0.04964]
[1688303581110,0.50216111,30553.0,30552.0,0.04964]
[1688303581303,0.50216111,30553.0,30552.0,0.07964]
[1688303581507,0.50216111,30553.0,30552.0,0.04964]
[1688303581902,0.50216111,30553.0,30552.0,0.01964]
[1688303582109,0.50216111,30553.0,30552.0,0.04964]
[1688303582509,0.50216111,30553.0,30552.0,0.07964]
[1688303583298,0.83156111,30553.0,30552.0,0.07964]
[1688303584509,0.79448197,30553.0,30552.0,0.07964]
[1688303585101,0.77484297,30553.0,30552.0,0.07964]
[1688303585617,0.79369242,30553.0,30552.0,0.07964]
[1688303585803,0.41404297,30553.0,30552.0,0.07964]
[1688303586204,0.41404297,30553.0,30552.0,0.09848945]
[1688303588315,0.3294,30553.0,30552.0,0.09848945]
[1688303590814,0.41405214,30553.0,30552.0,0.09848945]
[1688303598407,0.3294,30553.0,30552.0,0.09848945]
[1688303602016,0.34824945,30553.0,30552.0,0.07964]
[1688303602213,0.40264496,30553.0,30552.0,0.07964]
[1688303602414,0.34824945,30553.0,30552.0,0.07964]
[1688303604228,0.3294,30553.0,30552.0,0.07964]
[1688303604413,0.3294,30553.0,30552.0,0.09848945]
[1688303605820,0.349039,30553.0,30552.0,0.07964]
[1688303606119,0.43369114,30553.0,30552.0,0.07964]
[1688303606425,0.45254059,30553.0,30552.0,0.07964]
[1688303607922,0.43369114,30553.0,30552.0,0.09848945]
[1688303612315,0.41405214,30553.0,30552.0,0.09848945]
[1688303613422,0.3294,30553.0,30552.0,0.09848945]
[1688303619236,0.41405233,30553.0,30552.0,0.09848945]
[1688303623733,0.43290178,30553.0,30552.0,0.07964]
[1688303624941,0.41405233,30553.0,30552.0,0.07964]
[1688303625633,0.41405233,30553.0,30552.0,0.09848945]
[1688303625831,0.43228202,30553.0,30552.0,0.09848945]
[1688303626440,0.41405233,30553.0,30552.0,0.09848945]
[1688303627235,0.41405233,30553.0,30552.0,0.07964]
[1688303628934,0.41405233,30553.0,30552.0,0.09848945]
[1688303631729,0.45254078,30553.0,30552.0,0.07964]
[1688303632740,0.43369133,30553.0,30552.0,0.07964]
[1688303633139,0.43369133,30553.0,30552.0,0.09848945]
[1688303640151,0.41405233,30553.0,30552.0,0.09848945]
[1688303640952,0.08465233,30553.0,30552.0,0.09848945]
[1688303643048,0.08465233,30553.0,30552.0,0.07964]
[1688303643753,0.08465233,30553.0,30552.0,0.09848945]
[1688303645646,0.08465233,30553.0,30552.0,0.07964]
[1688303645647,0.10429133,30553.0,30552.0,0.07964]
[1688303645951,0.14137047,30553.0,30552.0,0.07964]
[1688303646153,0.12314078,30553.0,30552.0,0.07964]
[1688303646951,0.10429133,30553.0,30552.0,0.07964]
[1688303651556,0.12252102,30553.0,30552.0,0.07964]
[1688303651758,0.10429133,30553.0,30552.0,0.07964]
[1688303654159,0.12314078,30553.0,30552.0,0.07964]
[1688303655156,0.10429133,30553.0,30552.0,0.07964]
[1688303655663,0.12314078,30553.0,30552.0,0.07964]
[1688303657063,0.10429133,30553.0,30552.0,0.07964]
[1688303657662,0.10429133,30553.0,30552.0,0.09848945]
[1688303661254,0.10429133,30553.0,30552.0,0.07964]
[1688303664462,0.10429133,30553.0,30552.0,0.09848945]
[1688303670659,0.10429133,30553.0,30552.0,0.07964]
[1688303670869,0.10429133,30553.0,30552.0,0.09848945]
[1688303674365,0.10429133,30553.0,30552.0,0.07964]
[1688303675568,0.10429133,30553.0,30552.0,0.09848945]
[1688303683680,0.12252102,30553.0,30552.0,0.07964]
[1688303684483,0.14137047,30553.0,30552.0,0.07964]
[1688303689676,0.50217047,30553.0,30552.0,0.07964]
[1688303695682,0.48332102,30553.0,30552.0,0.07964]
[1688303696389,0.50217047,30553.0,30552.0,0.07964]
[1688303697085,0.14137047,30553.0,30552.0,0.07964]
[1688303697387,0.50217047,30553.0,30552.0,0.07964]
[1688303709902,0.14137047,30553.0,30552.0,0.07964]
[1688303710094,0.50217047,30553.0,30552.0,0.07964]
[1688303722110,0.14137047,30553.0,30552.0,0.07964]
[1688303722410,0.50217047,30553.0,30552.0,0.07964]
[1688303728314,0.14137047,30553.0,30552.0,0.07964]
[1688303730200,0.14137047,30553.0,30552.0,0.10555426]
[1688303731215,0.12314078,30553.0,30552.0,0.10555426]
[1688303732514,0.14137047,30553.0,30552.0,0.10555426]
[1688303734103,0.12314078,30553.0,30552.0,0.10555426]
[1688303734309,0.14137047,30553.0,30552.0,0.10555426]
[1688303734811,0.12314078,30553.0,30552.0,0.10555426]
[1688303735012,0.14137047,30553.0,30552.0,0.10555426]
[1688303735511,0.12314078,30553.0,30552.0,0.10555426]
[1688303735716,0.14137047,30553.0,30552.0,0.10555426]
[1688303736917,0.12314078,30553.0,30552.0,0.10555426]
[1688303737416,0.14137047,30553.0,30552.0,0.10555426]
[1688303737919,0.12314078,30553.0,30552.0,0.10555426]
[1688303739420,0.14137047,30553.0,30552.0,0.10555426]
[1688303740714,0.12314078,30553.0,30552.0,0.10555426]
[1688303744817,0.14137047,30553.0,30552.0,0.07964]
[1688303745320,0.12314078,30553.0,30552.0,0.07964]
[1688303746326,0.14137047,30553.0,30552.0,0.07964]
[1688303751735,0.50217047,30553.0,30552.0,0.07964]
[1688303753136,0.14137047,30553.0,30552.0,0.07964]
[1688303753448,0.50217047,30553.0,30552.0,0.07964]
[1688303753742,0.14137047,30553.0,30552.0,0.07964]
[1688303753943,0.50217047,30553.0,30552.0,0.07964]
[1688303758841,0.48394078,30553.0,30552.0,0.07964]
[1688303762155,0.50217047,30553.0,30552.0,0.07964]
[1688303763952,0.14137047,30553.0,30552.0,0.07964]
[1688303764151,0.50217047,30553.0,30552.0,0.07964]
[1688303764848,0.14137047,30553.0,30552.0,0.07964]
[1688303765053,0.50217047,30553.0,30552.0,0.07964]
[1688303766050,0.14137047,30553.0,30552.0,0.07964]
[1688303766254,0.50217047,30553.0,30552.0,0.07964]
[1688303769460,0.14137047,30553.0,30552.0,0.07964]
[1688303769661,0.50217047,30553.0,30552.0,0.07964]
[1688303780967,0.46509133,30553.0,30552.0,0.07964]
[1688303781662,0.48394078,30553.0,30552.0,0.07964]
[1688303782063,0.50217047,30553.0,30552.0,0.07964]
[1688303782665,0.48394078,30553.0,30552.0,0.07964]
[1688303784269,0.50217047,30553.0,30552.0,0.07964]
[1688303784570,0.48394078,30553.0,30552.0,0.07964]
[1688303785771,0.12314078,30553.0,30552.0,0.07964]
[1688303785974,0.48394078,30553.0,30552.0,0.07964]
[1688303787567,0.50217047,30553.0,30552.0,0.07964]
[1688303790773,0.12314078,30553.0,30552.0,0.07964]
[1688303791468,0.48394078,30553.0,30552.0,0.07964]
[1688303791671,0.50217047,30553.0,30552.0,0.07964]
[1688303794963,0.50217047,30553.0,30552.0,0.06]
[1688303795169,0.50217047,30553.0,30552.0,0.07964]
[1688303803271,0.14137047,30553.0,30552.0,0.07964]
[1688303803472,0.50217047,30553.0,30552.0,0.07964]
[1688303804467,0.48394078,30553.0,30552.0,0.07964]
[1688303805280,0.50217047,30553.0,30552.0,0.07964]
[1688303807982,0.46509133,30553.0,30552.0,0.07964]
[1688303808778,0.46509133,30553.0,30552.0,0.09848945]
[1688303812289,0.46509133,30553.0,30552.0,0.07964]
[1688303822795,0.48394078,30553.0,30552.0,0.07964]
[1688303830999,0.50217047,30553.0,30552.0,0.07964]
[1688303831594,0.14137047,30553.0,30552.0,0.07964]
[1688303831793,0.50217047,30553.0,30552.0,0.07964]
[1688303832696,0.48394078,30553.0,30552.0,0.07964]
[1688303835108,0.50217047,30553.0,30552.0,0.07964]
[1688303835518,0.48394078,30553.0,30552.0,0.07964]
[1688303836215,0.50217047,30553.0,30552.0,0.07964]
[1688303836806,0.48394078,30553.0,30552.0,0.07964]
[1688303837506,0.46509133,30553.0,30552.0,0.09848945]
[1688303842022,0.48394078,30553.0,30552.0,0.07964]
[1688303842522,0.46509133,30553.0,30552.0,0.07964]
[1688303843221,0.48394078,30553.0,30552.0,0.07964]
[1688303843420,0.50217047,30553.0,30552.0,0.07964]
[1688303843620,0.48394078,30553.0,30552.0,0.07964]
[1688303843823,0.46509133,30553.0,30552.0,0.07964]
[1688303844121,0.46509133,30553.0,30552.0,0.09848945]
[1688303848823,0.10429133,30553.0,30552.0,0.09848945]
[1688303849125,0.46509133,30553.0,30552.0,0.09848945]
[1688303849321,0.46509133,30553.0,30552.0,0.07964]
[1688303849719,0.46509133,30553.0,30552.0,0.09848945]
[1688303850825,0.48332102,30553.0,30552.0,0.07964]
[1688303851020,0.50217047,30553.0,30552.0,0.07964]
[1688303851713,0.14137047,30553.0,30552.0,0.07964]
[1688303851915,0.50217047,30553.0,30552.0,0.07964]
[1688303852123,0.14137047,30553.0,30552.0,0.07964]
[1688303852322,0.50217047,30553.0,30552.0,0.07964]
[1688303852532,0.14137047,30553.0,30552.0,0.07964]
[1688303852725,0.46509133,30553.0,30552.0,0.09848945]
[1688303854527,0.46509133,30553.0,30552.0,0.07964]
[1688303855925,0.10429133,30553.0,30552.0,0.09848945]
[1688303856125,0.46509133,30553.0,30552.0,0.09848945]
[1688303856727,0.48394078,30553.0,30552.0,0.07964]
[1688303856927,0.46509133,30553.0,30552.0,0.07964]
[1688303857328,0.53833629,30553.0,30552.0,0.07964]
[1688303857732,0.48394078,30553.0,30552.0,0.07964]
[1688303860734,0.46509133,30553.0,30552.0,0.07964]
[1688303861631,0.46509133,30553.0,30552.0,0.09848945]
[1688303862930,0.10429133,30553.0,30552.0,0.09848945]
[1688303863134,0.46509133,30553.0,30552.0,0.09848945]
[1688303863729,0.46509133,30553.0,30552.0,0.07964]
[1688303863931,0.50217047,30553.0,30552.0,0.07964]
[1688303865341,0.46509133,30553.0,30552.0,0.07964]
[1688303865728,0.10429133,30553.0,30552.0,0.07964]
[1688303865935,0.46509133,30553.0,30552.0,0.07964]
[1688303866438,0.50217047,30553.0,30552.0,0.07964]
[1688303866740,0.48394078,30553.0,30552.0,0.07964]
[1688303867149,0.46509133,30553.0,30552.0,0.07964]
[1688303868537,0.48332102,30553.0,30552.0,0.07964]
[1688303869648,0.12252102,30553.0,30552.0,0.07964]
[1688303869835,0.48332102,30553.0,30552.0,0.07964]
[1688303871847,0.12252102,30553.0,30552.0,0.07964]
[1688303872142,0.48332102,30553.0,30552.0,0.07964]
[1688303873751,0.46509133,30553.0,30552.0,0.07964]
[1688303874043,0.48332102,30553.0,30552.0,0.07964]
[1688303874351,0.46509133,30553.0,30552.0,0.07964]
[1688303874539,0.46509133,30553.0,30552.0,0.09848945]
[1688303875846,0.48332102,30553.0,30552.0,0.09848945]
[1688303876051,0.46509133,30553.0,30552.0,0.09848945]
[1688303878049,0.46509133,30553.0,30552.0,0.07964]
[1688303878248,0.48332102,30553.0,30552.0,0.07964]
[1688303878951,0.46509133,30553.0,30552.0,0.07964]
[1688303879547,0.46509133,30553.0,30552.0,0.09848945]
[1688303882155,0.48332102,30553.0,30552.0,0.09848945]
[1688303882456,0.46509133,30553.0,30552.0,0.09848945]
[1688303882857,0.77769133,30553.0,30552.0,0.09848945]
[1688303883149,0.41689133,30553.0,30552.0,0.09848945]
[1688303883456,0.77769133,30553.0,30552.0,0.09848945]
[1688303883751,0.79592102,30553.0,30552.0,0.09848945]
[1688303883956,0.77769133,30553.0,30552.0,0.09848945]
[1688303884345,0.77769133,30553.0,30552.0,0.07964]
[1688303884346,0.79592102,30553.0,30552.0,0.07964]
[1688303884554,0.81477047,30553.0,30552.0,0.07964]
[1688303886156,0.77769133,30553.0,30552.0,0.09848945]
[1688303887348,0.79592102,30553.0,30552.0,0.09848945]
[1688303887549,0.77769133,30553.0,30552.0,0.09848945]
[1688303888055,0.79592102,30553.0,30552.0,0.09848945]
[1688303888556,0.77769133,30553.0,30552.0,0.09848945]
[1688303888855,0.79592102,30553.0,30552.0,0.09848945]
[1688303889056,0.77769133,30553.0,30552.0,0.09848945]
[1688303891154,0.81477047,30553.0,30552.0,0.07964]
[1688303892245,0.77769133,30553.0,30552.0,0.07964]
[1688303892448,0.41689133,30553.0,30552.0,0.07964]
[1688303892650,0.77769133,30553.0,30552.0,0.07964]
[1688303893151,0.81477047,30553.0,30552.0,0.07964]
[1688303893348,0.79592102,30553.0,30552.0,0.07964]
[1688303893554,0.77769133,30553.0,30552.0,0.07964]
[1688303893754,0.79592102,30553.0,30552.0,0.07964]
[1688303894362,0.81477047,30553.0,30552.0,0.07964]
[1688303894762,0.79654078,30553.0,30552.0,0.07964]
[1688303895065,0.77769133,30553.0,30552.0,0.09848945]
[1688303901163,0.41689133,30553.0,30552.0,0.09848945]
[1688303901364,0.46509133,30553.0,30552.0,0.09848945]
[1688303901959,0.44545233,30553.0,30552.0,0.09848945]
[1688303907762,0.08465233,30553.0,30552.0,0.09848945]
[1688303929289,0.10429133,30553.0,30552.0,0.09848945]
[1688303930987,0.08465233,30553.0,30552.0,0.09848945]
[1688303968016,0.40855233,30553.0,30552.0,0.09848945]
[1688303992731,0.42740178,30553.0,30552.0,0.07964]
[1688303993530,0.40855233,30553.0,30552.0,0.07964]
[1688303994138,0.40855233,30553.0,30552.0,0.09848945]
[1688304001234,0.46527047,30553.0,30552.0,0.07964]
[1688304005938,0.47184138,30553.0,30552.0,0.07964]
[1688304009051,0.4976434,30553.0,30552.0,0.07964]
[1688304011951,0.8584434,30553.0,30552.0,0.07964]
[1688304013759,0.84021371,30553.0,30552.0,0.07964]
[1688304013948,0.8584434,30553.0,30552.0,0.07964]
[1688304015856,0.4976434,30553.0,30552.0,0.07964]
[1688304016062,0.8584434,30553.0,30552.0,0.07964]
[1688304018559,0.4976434,30553.0,30552.0,0.07964]
[1688304018861,0.8584434,30553.0,30552.0,0.07964]
[1688304020963,0.4976434,30553.0,30552.0,0.07964]
[1688304021150,0.8584434,30553.0,30552.0,0.07964]
[1688304023970,0.4976434,30553.0,30552.0,0.07964]
[1688304024165,0.8584434,30553.0,30552.0,0.07964]
[1688304024780,0.8584434,30553.0,30552.0,0.0298879]
[1688304024975,0.8584434,30553.0,30549.0,0.058923]
[1688304024976,0.03707914,30552.0,30549.0,0.058923]
[1688304025170,0.3608,30550.0,30548.0,0.019642]
[1688304025481,0.41752114,30549.0,30548.0,0.019642]
[1688304025985,0.41752114,30549.0,30548.0,0.036642]
[1688304026478,0.41752114,30549.0,30548.0,0.019642]
[1688304028777,0.05672114,30549.0,30548.0,0.019642]
[1688304029080,0.41752114,30549.0,30548.0,0.019642]
[1688304030090,0.50219342,30549.0,30548.0,0.019642]
[1688304030474,0.14139342,30549.0,30548.0,0.019642]
[1688304030783,0.50219342,30549.0,30548.0,0.019642]
[1688304033782,0.52901612,30549.0,30548.0,0.019642]
[1688304037990,0.51016667,30549.0,30548.0,0.03849145]
[1688304038483,0.52901612,30549.0,30548.0,0.019642]
[1688304039477,0.52901612,30549.0,30548.0,0.01941246]
[1688304041474,0.53192223,30549.0,30548.0,0.01941246]
[1688304042790,0.17112223,30549.0,30548.0,0.01941246]
[1688304042990,0.53192223,30549.0,30548.0,0.01941246]
[1688304049191,0.51307278,30549.0,30548.0,0.01941246]
[1688304049491,0.53192223,30549.0,30548.0,0.01941246]
[1688304049692,0.53179258,30549.0,30548.0,0.01941246]
[1688304050893,0.17099258,30549.0,30548.0,0.01941246]
[1688304051195,0.51356289,30549.0,30548.0,0.01941246]
[1688304051894,0.53179258,30549.0,30548.0,0.01941246]
[1688304058207,0.4471203,30549.0,30548.0,0.01941246]
[1688304065793,0.0863203,30549.0,30548.0,0.01941246]
[1688304065993,0.4471203,30549.0,30548.0,0.01941246]
[1688304069898,0.41004116,30549.0,30548.0,0.01941246]
[1688304070099,0.38321846,30549.0,30548.0,0.01941246]
[1688304070405,0.40144815,30549.0,30548.0,0.01941246]
[1688304070709,0.38321846,30549.0,30548.0,0.01941246]
[1688304070900,0.40144815,30549.0,30548.0,0.01941246]
[1688304071597,0.4202976,30549.0,30548.0,0.01941246]
[1688304072590,0.40078525,30549.0,30548.0,0.01941246]
[1688304073012,0.03998525,30549.0,30548.0,0.01941246]
[1688304073307,0.40078525,30549.0,30548.0,0.01941246]
[1688304073804,0.3819358,30549.0,30548.0,0.01941246]
[1688304075508,0.40078525,30549.0,30548.0,0.01941246]
[1688304076504,0.40078525,30549.0,30548.0,0.03826191]
[1688304076505,0.3819358,30549.0,30548.0,0.03826191]
[1688304077110,0.40078525,30549.0,30548.0,0.01941246]
[1688304081308,0.44837626,30549.0,30548.0,0.03826191]
[1688304085013,0.38255556,30549.0,30548.0,0.01941246]
[1688304085315,0.40219756,30549.0,30548.0,0.01941246]
[1688304085910,0.38334811,30549.0,30548.0,0.01941246]
[1688304086706,0.4015778,30549.0,30548.0,0.01941246]
[1688304089114,0.0407778,30549.0,30548.0,0.01941246]
[1688304089417,0.4015778,30549.0,30548.0,0.03826191]
[1688304089614,0.38334811,30549.0,30548.0,0.03826191]
[1688304090014,0.4015778,30549.0,30548.0,0.03826191]
[1688304090322,0.4015778,30549.0,30548.0,0.01941246]
[1688304100620,0.00290611,30549.0,30548.0,0.03826191]
[1688304100818,0.02609918,30551.0,30548.0,0.03826191]
[1688304101020,0.3608,30553.0,30548.0,0.01941246]
[1688304101522,0.3608,30553.0,30550.0,0.019641]
[1688304101825,0.4208,30553.0,30550.0,0.019641]
[1688304102022,0.3908,30553.0,30550.0,0.019641]
[1688304102217,0.3908,30553.0,30551.0,0.01884945]
[1688304102419,0.3608,30553.0,30552.0,0.01964]
[1688304102618,0.38762826,30553.0,30552.0,0.01964]
[1688304102817,0.41762826,30553.0,30552.0,0.01964]
[1688304103014,0.44762826,30553.0,30552.0,0.01964]
[1688304103217,0.41762826,30553.0,30552.0,0.01964]
[1688304103818,0.50229172,30553.0,30552.0,0.03848945]
[1688304104027,0.53229172,30553.0,30552.0,0.03848945]
[1688304107232,0.55052141,30553.0,30552.0,0.03848945]
[1688304107432,0.53229172,30553.0,30552.0,0.03848945]
[1688304108034,0.55052141,30553.0,30552.0,0.03848945]
[1688304108218,0.53229172,30553.0,30552.0,0.03848945]
[1688304109926,0.17149172,30553.0,30552.0,0.03848945]
[1688304110122,0.53229172,30553.0,30552.0,0.03848945]
[1688304111934,0.18972141,30553.0,30552.0,0.03848945]
[1688304112238,0.55052141,30553.0,30552.0,0.03848945]
[1688304112438,0.53229172,30553.0,30552.0,0.03848945]
[1688304112633,0.17149172,30553.0,30552.0,0.03848945]
[1688304113132,0.53229172,30553.0,30552.0,0.03848945]
[1688304114429,0.55052141,30553.0,30552.0,0.03848945]
[1688304114623,0.53229172,30553.0,30552.0,0.03848945]
[1688304115029,0.55052141,30553.0,30552.0,0.03848945]
[1688304115733,0.53229172,30553.0,30552.0,0.03848945]
[1688304116841,0.55052141,30553.0,30552.0,0.01964]
[1688304118145,0.18972141,30553.0,30552.0,0.01964]